[Event "Betsys MČR v online bleskovém šachu 2021"]
[Site "Chess.com"]
[Date "2021.04.17"]
[Round "11"]
[White "DavidZidlicky"]
[Black "petiva3"]
[Result "0-1"]
[WhiteElo "1619"]
[BlackElo "1427"]
[TimeControl "180+1"]
[EndTime "10:48:53 PDT"]
[Termination "Uživatel petiva3 zvítězil po vzdání soupeře"]

1. e4 {[%clk 0:02:56.2]} 1... e5 {[%clk 0:03:00.1]} 2. Nf3 {[%clk 0:02:55.9]}
2... Nc6 {[%clk 0:03:00.3]} 3. Nc3 {[%clk 0:02:55.6]} 3... Nf6 {[%clk
0:02:58.1]} 4. d4 {[%clk 0:02:55.3]} 4... exd4 {[%clk 0:02:57.9]} 5. Nxd4 {[%clk
0:02:55.5]} 5... Nxd4 {[%clk 0:02:58]} 6. Qxd4 {[%clk 0:02:54.7]} 6... Be7
{[%clk 0:02:58.2]} 7. Bc4 {[%clk 0:02:46.1]} 7... O-O {[%clk 0:02:57.4]} 8. O-O
{[%clk 0:02:45.8]} 8... d6 {[%clk 0:02:57.3]} 9. Kh1 {[%clk 0:02:39.5]} 9... Be6
{[%clk 0:02:51.2]} 10. Bd3 {[%clk 0:02:37.7]} 10... Ng4 {[%clk 0:02:42.1]} 11.
h3 {[%clk 0:01:54.4]} 11... Ne5 {[%clk 0:02:40.1]} 12. f4 {[%clk 0:01:47.7]}
12... Nc6 {[%clk 0:02:38]} 13. Qf2 {[%clk 0:01:43.4]} 13... Bh4 {[%clk
0:02:33.2]} 14. Qe3 {[%clk 0:01:33.7]} 14... f5 {[%clk 0:02:14.1]} 15. e5 {[%clk
0:01:29.2]} 15... d5 {[%clk 0:01:51.6]} 16. Ne2 {[%clk 0:00:56.6]} 16... d4
{[%clk 0:01:34.2]} 17. Qd2 {[%clk 0:00:49.7]} 17... h6 {[%clk 0:01:24.4]} 18. c3
{[%clk 0:00:47.9]} 18... g5 {[%clk 0:01:13.2]} 19. b3 {[%clk 0:00:45.3]} 19...
g4 {[%clk 0:01:04.2]} 20. Ba3 {[%clk 0:00:39.4]} 20... Rf7 {[%clk 0:01:00.2]}
21. g3 {[%clk 0:00:35.6]} 21... Be7 {[%clk 0:00:56.4]} 22. h4 {[%clk 0:00:34.1]}
22... Bxa3 {[%clk 0:00:53.5]} 23. b4 {[%clk 0:00:32]} 23... a5 {[%clk
0:00:48.3]} 24. Bb5 {[%clk 0:00:22.7]} 24... Qd5+ {[%clk 0:00:41.4]} 0-1

[Event "Betsys MČR v online bleskovém šachu 2021"]
[Site "Chess.com"]
[Date "2021.04.17"]
[Round "11"]
[White "VitaRasik"]
[Black "Lunaticx"]
[Result "0-1"]
[WhiteElo "2630"]
[BlackElo "2984"]
[TimeControl "180+1"]
[EndTime "10:48:56 PDT"]
[Termination "Uživatel Lunaticx zvítězil po vzdání soupeře"]

1. e4 {[%clk 0:03:00.9]} 1... e5 {[%clk 0:02:56.5]} 2. Nf3 {[%clk 0:03:00.9]}
2... Nc6 {[%clk 0:02:56.9]} 3. Bb5 {[%clk 0:03:00.8]} 3... Nf6 {[%clk
0:02:55.1]} 4. d4 {[%clk 0:03:00.8]} 4... exd4 {[%clk 0:02:40]} 5. e5 {[%clk
0:02:59.7]} 5... Ne4 {[%clk 0:02:26]} 6. O-O {[%clk 0:02:53.4]} 6... Be7 {[%clk
0:02:25.2]} 7. Re1 {[%clk 0:02:48.9]} 7... Ng5 {[%clk 0:02:19.9]} 8. Nxg5 {[%clk
0:02:02.7]} 8... Bxg5 {[%clk 0:02:20.8]} 9. f4 {[%clk 0:02:00.9]} 9... Be7
{[%clk 0:02:17]} 10. f5 {[%clk 0:01:55.1]} 10... a6 {[%clk 0:02:07.5]} 11. f6
{[%clk 0:01:45.1]} 11... axb5 {[%clk 0:02:04.4]} 12. fxe7 {[%clk 0:01:40.2]}
12... Qxe7 {[%clk 0:02:05.3]} 13. Nd2 {[%clk 0:01:32.5]} 13... Nxe5 {[%clk
0:02:01.5]} 14. Nf3 {[%clk 0:01:28.7]} 14... d6 {[%clk 0:02:00.6]} 15. Nxd4
{[%clk 0:01:12.1]} 15... Bd7 {[%clk 0:01:55.6]} 16. Bf4 {[%clk 0:01:10.3]} 16...
O-O {[%clk 0:01:53.8]} 17. Qh5 {[%clk 0:01:00.8]} 17... Rfe8 {[%clk 0:01:53.3]}
18. a3 {[%clk 0:00:58.3]} 18... Qf6 {[%clk 0:01:49.1]} 19. Bg5 {[%clk
0:00:46.2]} 19... Qg6 {[%clk 0:01:46.4]} 20. Qxg6 {[%clk 0:00:42.8]} 20... Nxg6
{[%clk 0:01:39.3]} 21. h3 {[%clk 0:00:37.6]} 21... f6 {[%clk 0:01:36.7]} 22. Bd2
{[%clk 0:00:36.6]} 22... h5 {[%clk 0:01:35.9]} 23. Kf2 {[%clk 0:00:35.5]} 23...
Kf7 {[%clk 0:01:35.8]} 24. Rxe8 {[%clk 0:00:28]} 24... Rxe8 {[%clk 0:01:34.9]}
25. Ba5 {[%clk 0:00:27.5]} 25... b6 {[%clk 0:01:34.2]} 26. Bd2 {[%clk
0:00:26.6]} 26... Ne5 {[%clk 0:01:32.4]} 27. b3 {[%clk 0:00:25.1]} 27... c5
{[%clk 0:01:29]} 28. Ne2 {[%clk 0:00:25]} 28... Bc6 {[%clk 0:01:26.5]} 29. Nf4
{[%clk 0:00:24.7]} 29... h4 {[%clk 0:01:26.5]} 30. Re1 {[%clk 0:00:22.4]} 30...
g5 {[%clk 0:01:24.7]} 31. Nd3 {[%clk 0:00:19.6]} 31... Ra8 {[%clk 0:01:23.1]}
32. Nxe5+ {[%clk 0:00:18.3]} 32... dxe5 {[%clk 0:01:21.8]} 33. Bc1 {[%clk
0:00:17.8]} 33... Ke6 {[%clk 0:01:19.9]} 34. Rd1 {[%clk 0:00:17.3]} 34... Be4
{[%clk 0:01:19.3]} 35. Rd2 {[%clk 0:00:17]} 35... Bg6 {[%clk 0:01:18.3]} 36. Bb2
{[%clk 0:00:17.1]} 36... f5 {[%clk 0:01:16.8]} 37. Re2 {[%clk 0:00:16]} 37... e4
{[%clk 0:01:17]} 38. Rd2 {[%clk 0:00:16.3]} 38... f4 {[%clk 0:01:17]} 39. Ke1
{[%clk 0:00:14.4]} 39... e3 {[%clk 0:01:16.5]} 0-1

[Event "Betsys MČR v online bleskovém šachu 2021"]
[Site "Chess.com"]
[Date "2021.04.17"]
[Round "11"]
[White "AJedlicka"]
[Black "domecek"]
[Result "1-0"]
[WhiteElo "2196"]
[BlackElo "1969"]
[TimeControl "180+1"]
[EndTime "10:48:56 PDT"]
[Termination "Uživatel AJedlicka zvítězil na čas"]

1. d4 {[%clk 0:02:56.3]} 1... d5 {[%clk 0:02:59.5]} 2. c4 {[%clk 0:02:55.7]}
2... c5 {[%clk 0:02:59.1]} 3. cxd5 {[%clk 0:02:54.6]} 3... Nf6 {[%clk
0:02:58.9]} 4. Nf3 {[%clk 0:02:52.5]} 4... cxd4 {[%clk 0:02:57.6]} 5. Qxd4
{[%clk 0:02:50.8]} 5... Qxd5 {[%clk 0:02:57.6]} 6. Nc3 {[%clk 0:02:50.2]} 6...
Qxd4 {[%clk 0:02:57.6]} 7. Nxd4 {[%clk 0:02:49.6]} 7... e5 {[%clk 0:02:58]} 8.
Ndb5 {[%clk 0:02:42.2]} 8... Na6 {[%clk 0:02:58.1]} 9. Bg5 {[%clk 0:02:40.8]}
9... Bb4 {[%clk 0:02:57.7]} 10. a3 {[%clk 0:02:39.2]} 10... Bxc3+ {[%clk
0:02:57]} 11. Nxc3 {[%clk 0:02:38.8]} 11... Be6 {[%clk 0:02:53.3]} 12. e3 {[%clk
0:02:37.8]} 12... Nc5 {[%clk 0:02:51.1]} 13. Bb5+ {[%clk 0:02:36.2]} 13... Ke7
{[%clk 0:02:50.4]} 14. O-O {[%clk 0:02:32.2]} 14... a6 {[%clk 0:02:46.4]} 15.
Be2 {[%clk 0:02:31.3]} 15... h6 {[%clk 0:02:45.4]} 16. Bh4 {[%clk 0:02:29.8]}
16... Rhd8 {[%clk 0:02:38.4]} 17. b4 {[%clk 0:02:25.7]} 17... Nd7 {[%clk
0:02:33.4]} 18. Rad1 {[%clk 0:02:22.8]} 18... Nb6 {[%clk 0:02:25]} 19. Ne4
{[%clk 0:02:18.4]} 19... g5 {[%clk 0:02:13.1]} 20. Nxf6 {[%clk 0:02:17.2]} 20...
Kxf6 {[%clk 0:02:10.7]} 21. Bg3 {[%clk 0:02:16.6]} 21... Bb3 {[%clk 0:02:02.7]}
22. Rc1 {[%clk 0:02:10.5]} 22... Rac8 {[%clk 0:01:58]} 23. h4 {[%clk 0:02:06.7]}
23... Ke6 {[%clk 0:01:54.2]} 24. Bf3 {[%clk 0:02:01.8]} 24... Bd5 {[%clk
0:01:51.2]} 25. e4 {[%clk 0:01:59.5]} 25... Bc6 {[%clk 0:01:18.8]} 26. Bg4+
{[%clk 0:01:58.3]} 26... Ke7 {[%clk 0:01:18.7]} 27. Bxc8 {[%clk 0:01:57.2]}
27... Nxc8 {[%clk 0:01:17.3]} 28. hxg5 {[%clk 0:01:54.3]} 28... hxg5 {[%clk
0:01:15.9]} 29. Bxe5 {[%clk 0:01:53.9]} 29... Rd3 {[%clk 0:01:13.2]} 30. f3
{[%clk 0:01:51]} 30... Rxa3 {[%clk 0:01:10.5]} 31. Rfd1 {[%clk 0:01:47]} 31...
Rb3 {[%clk 0:01:02.5]} 32. Bd4 {[%clk 0:01:44]} 32... Ke6 {[%clk 0:00:58.6]} 33.
Bc5 {[%clk 0:01:42.8]} 33... g4 {[%clk 0:00:31.4]} 34. Kf2 {[%clk 0:01:35.2]}
34... gxf3 {[%clk 0:00:26.7]} 35. gxf3 {[%clk 0:01:34.8]} 35... f5 {[%clk
0:00:23.5]} 36. exf5+ {[%clk 0:01:31.9]} 36... Kxf5 {[%clk 0:00:22.9]} 37. Rd8
{[%clk 0:01:31]} 37... Rxf3+ {[%clk 0:00:20.6]} 38. Ke2 {[%clk 0:01:27.3]} 1-0

[Event "Betsys MČR v online bleskovém šachu 2021"]
[Site "Chess.com"]
[Date "2021.04.17"]
[Round "11"]
[White "martin1804"]
[Black "tomasPardubice"]
[Result "0-1"]
[WhiteElo "2238"]
[BlackElo "2115"]
[TimeControl "180+1"]
[EndTime "10:48:58 PDT"]
[Termination "Uživatel tomasPardubice zvítězil po vzdání soupeře"]

1. d4 {[%clk 0:03:00.9]} 1... Nf6 {[%clk 0:02:58.6]} 2. Nf3 {[%clk 0:03:00.9]}
2... e6 {[%clk 0:02:58.5]} 3. Bf4 {[%clk 0:03:01]} 3... c5 {[%clk 0:02:56.7]} 4.
e3 {[%clk 0:03:00.5]} 4... Nc6 {[%clk 0:02:56.7]} 5. c3 {[%clk 0:02:58.6]} 5...
d5 {[%clk 0:02:55.3]} 6. Nbd2 {[%clk 0:02:56.5]} 6... Be7 {[%clk 0:02:55.5]} 7.
Bd3 {[%clk 0:02:54.4]} 7... a6 {[%clk 0:02:55]} 8. O-O {[%clk 0:02:51]} 8... b5
{[%clk 0:02:54.7]} 9. a4 {[%clk 0:02:45.4]} 9... b4 {[%clk 0:02:51.8]} 10. dxc5
{[%clk 0:02:36.3]} 10... Bxc5 {[%clk 0:02:50.4]} 11. Nb3 {[%clk 0:02:34.6]}
11... Be7 {[%clk 0:02:47.7]} 12. Nfd4 {[%clk 0:02:24.8]} 12... Nxd4 {[%clk
0:02:46.8]} 13. cxd4 {[%clk 0:02:21.7]} 13... O-O {[%clk 0:02:45.5]} 14. Rc1
{[%clk 0:02:19.8]} 14... Bd7 {[%clk 0:02:42.5]} 15. Bc7 {[%clk 0:02:17.8]} 15...
Qe8 {[%clk 0:02:40.9]} 16. a5 {[%clk 0:02:12.6]} 16... Ba4 {[%clk 0:02:40.6]}
17. Bc2 {[%clk 0:02:01.5]} 17... Qd7 {[%clk 0:02:25.4]} 18. Re1 {[%clk
0:01:52.2]} 18... Rfc8 {[%clk 0:02:22.2]} 19. Bb6 {[%clk 0:01:48.7]} 19... Ne4
{[%clk 0:02:19.2]} 20. Bxe4 {[%clk 0:01:46]} 20... dxe4 {[%clk 0:02:18.8]} 21.
Rxc8+ {[%clk 0:01:24]} 21... Rxc8 {[%clk 0:02:18.1]} 22. f3 {[%clk 0:01:24.9]}
22... Qd5 {[%clk 0:02:15.8]} 23. fxe4 {[%clk 0:01:24.7]} 23... Qxb3 {[%clk
0:02:15.7]} 24. Qe2 {[%clk 0:01:18.2]} 24... Bb5 {[%clk 0:02:06.7]} 25. Qf3
{[%clk 0:01:18.1]} 25... Qxb2 {[%clk 0:02:02.5]} 26. d5 {[%clk 0:01:15]} 26...
Rc1 {[%clk 0:01:57.7]} 27. Qg3 {[%clk 0:01:02.1]} 27... Bd6 {[%clk 0:01:49.2]}
28. Qh4 {[%clk 0:00:55.2]} 28... Be7 {[%clk 0:01:44.9]} 29. Qg3 {[%clk
0:00:52.3]} 29... Qd2 {[%clk 0:01:43.8]} 30. Qb8+ {[%clk 0:00:46.6]} 30... Bf8
{[%clk 0:01:43]} 31. Rxc1 {[%clk 0:00:45.6]} 31... Qxc1+ {[%clk 0:01:43]} 32.
Kf2 {[%clk 0:00:46.5]} 32... b3 {[%clk 0:01:22.2]} 33. dxe6 {[%clk 0:00:35.3]}
33... fxe6 {[%clk 0:01:21.3]} 34. Qe5 {[%clk 0:00:30.6]} 34... b2 {[%clk
0:00:59.3]} 35. Qxe6+ {[%clk 0:00:29.6]} 35... Kh8 {[%clk 0:00:59.2]} 36. Qf5
{[%clk 0:00:21.8]} 36... Qf1+ {[%clk 0:00:58.5]} 37. Kg3 {[%clk 0:00:21.5]}
37... Qxf5 {[%clk 0:00:58.4]} 38. exf5 {[%clk 0:00:22.4]} 38... b1=Q {[%clk
0:00:58.2]} 0-1

[Event "Betsys MČR v online bleskovém šachu 2021"]
[Site "Chess.com"]
[Date "2021.04.17"]
[Round "11"]
[White "DenisaD2008"]
[Black "Simaril76"]
[Result "1-0"]
[WhiteElo "953"]
[BlackElo "711"]
[TimeControl "180+1"]
[EndTime "10:49:01 PDT"]
[Termination "Uživatel DenisaD2008 zvítězil po vzdání soupeře"]

1. e4 {[%clk 0:03:00.9]} 1... c6 {[%clk 0:02:58.2]} 2. Nc3 {[%clk 0:02:59]} 2...
d5 {[%clk 0:02:58.7]} 3. d4 {[%clk 0:02:57.6]} 3... e6 {[%clk 0:02:51.7]} 4. Bd3
{[%clk 0:02:55.3]} 4... dxe4 {[%clk 0:02:50.5]} 5. Bxe4 {[%clk 0:02:53.5]} 5...
Nd7 {[%clk 0:02:49.5]} 6. Be3 {[%clk 0:02:51.8]} 6... e5 {[%clk 0:02:48.8]} 7.
dxe5 {[%clk 0:02:50.1]} 7... Nxe5 {[%clk 0:02:44]} 8. Qxd8+ {[%clk 0:02:50.1]}
8... Kxd8 {[%clk 0:02:43]} 9. O-O-O+ {[%clk 0:02:50.3]} 9... Bd7 {[%clk
0:02:37.3]} 10. Bf5 {[%clk 0:02:48.2]} 10... Nf6 {[%clk 0:02:28.7]} 11. Bf4
{[%clk 0:02:46.2]} 11... Nc4 {[%clk 0:02:22]} 12. Bg5 {[%clk 0:02:39]} 12... Be7
{[%clk 0:02:13.4]} 13. Bxf6 {[%clk 0:02:31.4]} 13... Bxf6 {[%clk 0:02:11]} 14.
Rxd7+ {[%clk 0:02:31.3]} 14... Ke8 {[%clk 0:01:59.3]} 15. Rxb7 {[%clk 0:02:31]}
15... Kf8 {[%clk 0:01:46.7]} 16. Nf3 {[%clk 0:02:29.1]} 16... g6 {[%clk
0:01:46.5]} 17. Be4 {[%clk 0:02:25.6]} 17... Kg7 {[%clk 0:01:46.3]} 18. Bxc6
{[%clk 0:02:23.3]} 18... Nb6 {[%clk 0:01:39.8]} 19. Nd5 {[%clk 0:02:16.9]} 19...
Rhd8 {[%clk 0:01:33.7]} 20. Nxb6 {[%clk 0:02:14.2]} 20... axb6 {[%clk
0:01:31.9]} 21. Rxb6 {[%clk 0:02:12.6]} 21... Rd6 {[%clk 0:01:25.3]} 22. Bxa8
{[%clk 0:01:59.5]} 22... Rxb6 {[%clk 0:01:19.5]} 23. h4 {[%clk 0:01:56.1]} 23...
Bxb2+ {[%clk 0:01:15.7]} 24. Kd1 {[%clk 0:01:50.1]} 24... Rd6+ {[%clk
0:01:12.1]} 25. Nd2 {[%clk 0:01:45.1]} 25... Bd4 {[%clk 0:01:04.4]} 26. h5
{[%clk 0:01:32.6]} 26... Bxf2 {[%clk 0:00:59]} 27. hxg6 {[%clk 0:01:30.9]} 27...
hxg6 {[%clk 0:00:56.1]} 28. Rf1 {[%clk 0:01:29.8]} 28... Bb6 {[%clk 0:00:42.2]}
29. Ke2 {[%clk 0:01:26.9]} 29... Re6+ {[%clk 0:00:38.7]} 30. Be4 {[%clk
0:01:21]} 30... f5 {[%clk 0:00:34.6]} 31. Kd3 {[%clk 0:01:15.2]} 31... Rd6+
{[%clk 0:00:26.1]} 32. Kc4 {[%clk 0:01:09.2]} 32... fxe4 {[%clk 0:00:24.4]} 33.
Nxe4 {[%clk 0:01:07.6]} 33... Re6 {[%clk 0:00:20.5]} 34. Nc5 {[%clk 0:01:04.3]}
34... Bd8 {[%clk 0:00:18.3]} 35. Nxe6+ {[%clk 0:01:03]} 1-0

[Event "Betsys MČR v online bleskovém šachu 2021"]
[Site "Chess.com"]
[Date "2021.04.17"]
[Round "11"]
[White "kalcs"]
[Black "Saygram"]
[Result "0-1"]
[WhiteElo "2074"]
[BlackElo "2389"]
[TimeControl "180+1"]
[EndTime "10:49:05 PDT"]
[Termination "Uživatel Saygram zvítězil na čas"]

1. e4 {[%clk 0:03:00]} 1... e5 {[%clk 0:02:59.8]} 2. Nf3 {[%clk 0:03:00]} 2...
Nc6 {[%clk 0:03:00.2]} 3. Bb5 {[%clk 0:02:59.8]} 3... a6 {[%clk 0:03:00.2]} 4.
Ba4 {[%clk 0:02:59.9]} 4... d6 {[%clk 0:03:01.1]} 5. c3 {[%clk 0:02:57.9]} 5...
Ne7 {[%clk 0:02:58.6]} 6. O-O {[%clk 0:02:54.2]} 6... Bd7 {[%clk 0:02:58.5]} 7.
d4 {[%clk 0:02:49.2]} 7... g6 {[%clk 0:02:53.4]} 8. Bg5 {[%clk 0:02:39.8]} 8...
Bg7 {[%clk 0:02:53.4]} 9. d5 {[%clk 0:02:31.4]} 9... Nb8 {[%clk 0:02:52.7]} 10.
Bc2 {[%clk 0:02:26.3]} 10... h6 {[%clk 0:02:46.2]} 11. Be3 {[%clk 0:02:24.6]}
11... f5 {[%clk 0:02:45.7]} 12. exf5 {[%clk 0:02:11.5]} 12... gxf5 {[%clk
0:02:44.6]} 13. Nh4 {[%clk 0:01:59.2]} 13... O-O {[%clk 0:02:29.4]} 14. Qh5
{[%clk 0:01:52.6]} 14... Qe8 {[%clk 0:02:29.2]} 15. Qxe8 {[%clk 0:01:44.7]}
15... Bxe8 {[%clk 0:02:23.2]} 16. Rd1 {[%clk 0:01:25.7]} 16... f4 {[%clk
0:02:21.7]} 17. Bc1 {[%clk 0:01:21.9]} 17... Nd7 {[%clk 0:02:20.9]} 18. Nf3
{[%clk 0:01:17.5]} 18... Bh5 {[%clk 0:02:18.2]} 19. Nbd2 {[%clk 0:01:16.5]}
19... b5 {[%clk 0:02:13.6]} 20. Ne4 {[%clk 0:01:08.2]} 20... Nb6 {[%clk
0:02:11.8]} 21. b3 {[%clk 0:00:48.8]} 21... Nexd5 {[%clk 0:02:00.1]} 22. a4
{[%clk 0:00:35]} 22... bxa4 {[%clk 0:01:52.1]} 23. bxa4 {[%clk 0:00:34.8]} 23...
Nf6 {[%clk 0:01:46.3]} 24. Bb3+ {[%clk 0:00:33.7]} 24... Kh8 {[%clk 0:01:45.6]}
25. Nxf6 {[%clk 0:00:24.9]} 25... Bxf6 {[%clk 0:01:46.5]} 26. a5 {[%clk
0:00:24.8]} 26... Nd7 {[%clk 0:01:43]} 27. Bd5 {[%clk 0:00:19.6]} 27... Rab8
{[%clk 0:01:42.8]} 28. Bd2 {[%clk 0:00:12.2]} 28... Nc5 {[%clk 0:01:41.6]} 29.
Rdb1 {[%clk 0:00:11.5]} 29... e4 {[%clk 0:01:28.3]} 30. Nd4 {[%clk 0:00:09.5]}
30... Be5 {[%clk 0:01:01.6]} 31. Rxb8 {[%clk 0:00:06.3]} 31... Rxb8 {[%clk
0:01:01]} 32. Nc6 {[%clk 0:00:06.3]} 32... Rb2 {[%clk 0:01:00.8]} 0-1

[Event "Betsys MČR v online bleskovém šachu 2021"]
[Site "Chess.com"]
[Date "2021.04.17"]
[Round "11"]
[White "MichalTrhal"]
[Black "Qb1xh8"]
[Result "1-0"]
[WhiteElo "1952"]
[BlackElo "2069"]
[TimeControl "180+1"]
[EndTime "10:49:08 PDT"]
[Termination "Uživatel MichalTrhal zvítězil po vzdání soupeře"]

1. d4 {[%clk 0:02:58.3]} 1... d5 {[%clk 0:02:57.9]} 2. Bg5 {[%clk 0:02:57.2]}
2... c5 {[%clk 0:02:56.4]} 3. dxc5 {[%clk 0:02:52.9]} 3... f6 {[%clk 0:02:40.8]}
4. Bh4 {[%clk 0:02:50.7]} 4... e5 {[%clk 0:02:35.7]} 5. e4 {[%clk 0:02:48.9]}
5... Be6 {[%clk 0:02:17.9]} 6. exd5 {[%clk 0:02:45.5]} 6... Qxd5 {[%clk
0:02:18.8]} 7. Qxd5 {[%clk 0:02:44.6]} 7... Bxd5 {[%clk 0:02:19.7]} 8. Nc3
{[%clk 0:02:44.9]} 8... Bc6 {[%clk 0:02:19.6]} 9. Nb5 {[%clk 0:02:31.6]} 9...
Na6 {[%clk 0:02:03.9]} 10. Nd6+ {[%clk 0:02:31.5]} 10... Bxd6 {[%clk 0:02:01.3]}
11. cxd6 {[%clk 0:02:32.4]} 11... Nb4 {[%clk 0:02:00.2]} 12. O-O-O {[%clk
0:02:32.2]} 12... Nxa2+ {[%clk 0:01:56]} 13. Kb1 {[%clk 0:02:31.9]} 13... Nb4
{[%clk 0:01:56.5]} 14. f3 {[%clk 0:01:44.2]} 14... Nh6 {[%clk 0:01:50.1]} 15. c3
{[%clk 0:01:44.1]} 15... Nd5 {[%clk 0:01:39.6]} 16. Bf2 {[%clk 0:01:32.7]} 16...
Nf5 {[%clk 0:01:39.3]} 17. Bd3 {[%clk 0:01:21]} 17... Nfe3 {[%clk 0:01:25.1]}
18. Rd2 {[%clk 0:01:16.9]} 18... Nxg2 {[%clk 0:01:21]} 19. Be4 {[%clk
0:01:16.8]} 19... Ngf4 {[%clk 0:01:19.3]} 20. Bg3 {[%clk 0:01:12.9]} 20... O-O-O
{[%clk 0:01:09.9]} 21. Bxf4 {[%clk 0:01:04.5]} 21... Nxf4 {[%clk 0:01:09.5]} 22.
Bxc6 {[%clk 0:01:04.4]} 22... bxc6 {[%clk 0:01:10.4]} 23. c4 {[%clk 0:01:02.6]}
23... c5 {[%clk 0:01:07.5]} 24. b4 {[%clk 0:01:02.6]} 24... cxb4 {[%clk
0:01:06.8]} 25. c5 {[%clk 0:01:02.9]} 25... Kb7 {[%clk 0:01:07]} 26. Ne2 {[%clk
0:01:00.3]} 26... Ne6 {[%clk 0:01:02.9]} 27. Rc1 {[%clk 0:00:57.7]} 27... Kc6
{[%clk 0:01:02.4]} 28. Ng3 {[%clk 0:00:55.8]} 28... g6 {[%clk 0:00:51.8]} 29.
Ne4 {[%clk 0:00:54.5]} 29... f5 {[%clk 0:00:51.4]} 30. Nf6 {[%clk 0:00:51.3]}
30... a5 {[%clk 0:00:42.9]} 31. Nd5 {[%clk 0:00:45.2]} 31... Nxc5 {[%clk
0:00:39.4]} 32. Ne7+ {[%clk 0:00:45]} 32... Kb5 {[%clk 0:00:39.3]} 33. Rd5
{[%clk 0:00:44.4]} 33... Rc8 {[%clk 0:00:33.1]} 34. Nxc8 {[%clk 0:00:42.4]}
34... Rxc8 {[%clk 0:00:34]} 35. d7 {[%clk 0:00:42.1]} 35... Rd8 {[%clk
0:00:33.4]} 36. Rcxc5+ {[%clk 0:00:40.8]} 36... Ka4 {[%clk 0:00:33.2]} 37. Kb2
{[%clk 0:00:39.9]} 1-0

[Event "Betsys MČR v online bleskovém šachu 2021"]
[Site "Chess.com"]
[Date "2021.04.17"]
[Round "11"]
[White "masodj"]
[Black "Richter_Rudolf"]
[Result "1-0"]
[WhiteElo "1734"]
[BlackElo "1419"]
[TimeControl "180+1"]
[EndTime "10:49:08 PDT"]
[Termination "Uživatel masodj zvítězil na čas"]

1. e4 {[%clk 0:03:00.9]} 1... c5 {[%clk 0:01:52.8]} 2. d4 {[%clk 0:02:58.4]}
2... cxd4 {[%clk 0:01:46.9]} 3. c3 {[%clk 0:02:57.4]} 3... d5 {[%clk 0:01:43.4]}
4. exd5 {[%clk 0:02:53]} 4... Qxd5 {[%clk 0:01:42.1]} 5. Qxd4 {[%clk 0:02:45]}
5... Qxd4 {[%clk 0:01:41.5]} 6. cxd4 {[%clk 0:02:44.7]} 6... e6 {[%clk
0:01:33.8]} 7. Nc3 {[%clk 0:02:40.8]} 7... Nf6 {[%clk 0:01:23.7]} 8. Bf4 {[%clk
0:02:30.4]} 8... Bb4 {[%clk 0:01:19.9]} 9. Nf3 {[%clk 0:02:28.6]} 9... Nd5
{[%clk 0:01:18.8]} 10. Bd2 {[%clk 0:02:26.2]} 10... Nc6 {[%clk 0:01:10.9]} 11.
Bb5 {[%clk 0:02:23.1]} 11... Bd7 {[%clk 0:01:09.9]} 12. a3 {[%clk 0:02:21.6]}
12... Ba5 {[%clk 0:01:04.8]} 13. O-O {[%clk 0:02:08.3]} 13... Nxc3 {[%clk
0:01:01.3]} 14. bxc3 {[%clk 0:02:06.5]} 14... a6 {[%clk 0:00:58.5]} 15. Bd3
{[%clk 0:02:03]} 15... Ne7 {[%clk 0:00:39.7]} 16. Rab1 {[%clk 0:01:59]} 16... b5
{[%clk 0:00:37]} 17. Rfe1 {[%clk 0:01:55.8]} 17... Nd5 {[%clk 0:00:31.8]} 18.
Rbc1 {[%clk 0:01:40]} 18... Rc8 {[%clk 0:00:17.1]} 19. c4 {[%clk 0:01:30.9]}
19... bxc4 {[%clk 0:00:17]} 20. Rxc4 {[%clk 0:01:29.9]} 20... Bxd2 {[%clk
0:00:15.8]} 21. Rxc8+ {[%clk 0:01:23.3]} 21... Bxc8 {[%clk 0:00:15.4]} 22. Nxd2
{[%clk 0:01:23.3]} 22... O-O {[%clk 0:00:14.7]} 23. Rc1 {[%clk 0:01:18.2]} 23...
Rd8 {[%clk 0:00:09.8]} 24. Nf3 {[%clk 0:01:16.2]} 24... a5 {[%clk 0:00:06.7]}
25. Rc5 {[%clk 0:01:13.1]} 25... Bb7 {[%clk 0:00:06.9]} 26. Rxa5 {[%clk
0:01:09.9]} 26... Nc3 {[%clk 0:00:06.1]} 27. Ra7 {[%clk 0:01:04]} 27... Bxf3
{[%clk 0:00:05.3]} 28. gxf3 {[%clk 0:01:03.4]} 28... h6 {[%clk 0:00:04.3]} 29.
a4 {[%clk 0:01:02.6]} 29... Rxd4 {[%clk 0:00:03.6]} 30. a5 {[%clk 0:01:00]}
30... Rxd3 {[%clk 0:00:02.4]} 31. a6 {[%clk 0:00:58.5]} 31... Nb5 {[%clk
0:00:02.4]} 32. Rb7 {[%clk 0:00:57.6]} 1-0